[Event "1000GM Schev-C-A February 2024"]
[Site "Santa Clara"]
[Date "2024.02.26"]
[Round "5.5"]
[White "Zhou, Ruoyu"]
[Black "Jimenez Garcia, Emmanuel"]
[Result "0-1"]
[ECO "B69"]
[WhiteElo "2112"]
[BlackElo "2394"]
[Annotator "RC"]
[PlyCount "92"]
[EventDate "2024.02.13"]
[EventType "schev"]
[EventCountry "USA"]
[SourceTitle "playchess.com"]
[Source "ChessBase"]
[SourceQuality "1"]
[TimeControl "5400+30"]

1. e4 {[%emt 0:03:12]} c5 {[%emt 0:00:08]} 2. Nf3 {[%emt 0:00:43]} d6 {[%emt 0:00:06]} 3. d4 {[%emt 0:00:06]} cxd4 {[%emt 0:00:05]} 4. Nxd4 {[%emt 0:00:08]} Nf6 {[%emt 0:00:05]} 5. Nc3 {[%emt 0:00:07]} Nc6 {[%emt 0:00:06]} 6. Bg5 {[%emt 0:00:07]} Bd7 {[%emt 0:00:13]} 7. Qd2 {[%emt 0:00:10]} a6 {[%emt 0:00:25]} 8. O-O-O {[%emt 0:09:10]} e6 {[%emt 0:00:08]} 9. f4 {[%emt 0:00:45]} Be7 {[%emt 0:00:10]} 10. Nf3 {[%emt 0:08:13]} b5 {[%emt 0:00:02]} 11. Bxf6 {[%emt 0:01:09]} gxf6 {[%emt 0:00:18]} 12. Kb1 {[%emt 0:00:37]} Qb6 {[%emt 0:05:47]} 13. f5 {[%emt 0:01:58]} O-O-O {[%emt 0:03:01]} 14. g3 {[%emt 0:00:41]} Kb8 {[%emt 0:02:16]} 15. fxe6 {[%emt 0:00:13]} fxe6 {[%emt 0:00:07]} 16. Bh3 {[%emt 0:00:11]} Bc8 {[%emt 0:05:11]} 17. Qh6 {[%emt 0:00:17]} Qc5 {[%emt 0:18:17]} 18. Rhf1 {[%emt 0:12:16]} Rdg8 {[%emt 0:25:53]} 19. Ne2 {[%emt 0:12:51]} Rg6 {[%emt 0:02:14]} 20. Qd2 {[%emt 0:03:47]} Ne5 {[%emt 0:00:15]} 21. Nfd4 {[%emt 0:10:32]} Nc4 {[%emt 0:00:36]} 22. Qc1 {[%emt 0:00:24]} e5 {[%emt 0:04:34]} 23. Bxc8 {[%emt 0:04:32]} Rxc8 {[%emt 0:19:20]} 24. Nf5 {[%emt 0:04:49]} Bf8 {[%emt 0:02:57]} 25. Rd3 {[%emt 0:07:48]} b4 {[%emt 0:00:39]} 26. Rd5 {[%emt 0:01:27]} Qc6 {[%emt 0:00:52]} 27. Qd1 {[%emt 0:08:05]} Rg4 {[%emt 0:03:26]} 28. Nc1 {[%emt 0:05:41]} Rxe4 {[%emt 0:00:24]} 29. Nb3 {[%emt 0:00:22]} Nb6 {[%emt 0:00:41]} 30. Rd3 {[%emt 0:01:05]} d5 {[%emt 0:00:15]} 31. Ne3 {[%emt 0:00:42]} d4 {[%emt 0:00:22]} 32. Nf5 {[%emt 0:00:11]} Nc4 {[%emt 0:00:41]} 33. Nd2 {[%emt 0:00:55]} Ne3 {[%emt 0:01:05]} 34. Nxe3 {[%emt 0:00:13]} Rxe3 {[%emt 0:00:02]} 35. Nb3 {[%emt 0:00:19]} Bh6 {[%emt 0:02:02]} 36. Nc1 {[%emt 0:00:44]} a5 {[%emt 0:00:40]} 37. Nb3 {[%emt 0:00:45]} a4 {[%emt 0:00:12]} 38. Nd2 {[%emt 0:00:50]} Qa6 {[%emt 0:02:20]} 39. Nf3 {[%emt 0:00:33]} b3 {[%emt 0:00:31]} 40. c4 {[%emt 0:01:40]} Qxc4 {[%emt 0:00:21]} 41. Rxe3 {[%emt 0:00:13]} Bxe3 {[%emt 0:00:27]} 42. Re1 {[%emt 0:00:29]} Qc2+ {[%emt 0:00:40]} 43. Ka1 {[%emt 0:00:11]} a3 {[%emt 0:00:15]} 44. Qb1 {[%emt 0:00:26]} e4 {[%emt 0:01:48]} 45. Nh4 {[%emt 0:00:21]} Bd2 {[%emt 0:01:03]} 46. Rd1 {[%emt 0:00:19]} axb2+ {[%emt 0:00:08]} 0-1